[Event "*** SCC Grand Prix: Titled Tuesday Blitz"]
[Site "Chess.com"]
[Date "2020.06.23"]
[Round "4"]
[White "IsaacWiebe"]
[Black "MaxVavulin"]
[Result "0-1"]
[WhiteElo "2090"]
[BlackElo "2569"]
[TimeControl "180+1"]
[EndTime "10:39:40 PDT"]
[Termination "MaxVavulin won by checkmate"]

1. d4 {[%clk 0:03:00.9]} 1... Nf6 {[%clk 0:02:58.9]} 2. c4 {[%clk 0:03:00.3]}
2... e6 {[%clk 0:02:58.8]} 3. g3 {[%clk 0:03:00.7]} 3... c5 {[%clk 0:02:55.8]}
4. d5 {[%clk 0:03:00.1]} 4... b5 {[%clk 0:02:48.9]} 5. Bg2 {[%clk 0:02:56.8]}
5... exd5 {[%clk 0:02:40.6]} 6. cxd5 {[%clk 0:02:55.5]} 6... d6 {[%clk 0:02:41]}
7. Nf3 {[%clk 0:02:52.9]} 7... g6 {[%clk 0:02:39.8]} 8. O-O {[%clk 0:02:46.8]}
8... Bg7 {[%clk 0:02:39.9]} 9. a4 {[%clk 0:02:41.9]} 9... b4 {[%clk 0:02:30.3]}
10. Nbd2 {[%clk 0:02:40.6]} 10... O-O {[%clk 0:02:27.3]} 11. Nc4 {[%clk
0:02:39.4]} 11... Ba6 {[%clk 0:02:27.9]} 12. Nfd2 {[%clk 0:02:30.7]} 12... Qe7
{[%clk 0:02:23.9]} 13. Re1 {[%clk 0:02:29.3]} 13... Nbd7 {[%clk 0:02:23.3]} 14.
e4 {[%clk 0:02:28.4]} 14... Nb6 {[%clk 0:02:16.6]} 15. Qc2 {[%clk 0:02:25]}
15... Nfd7 {[%clk 0:02:12.2]} 16. Na5 {[%clk 0:02:05.2]} 16... Nxd5 {[%clk
0:01:56.7]} 17. Nc6 {[%clk 0:02:02.2]} 17... Qe8 {[%clk 0:01:56.1]} 18. Nc4
{[%clk 0:01:55.4]} 18... Bxc4 {[%clk 0:01:47.6]} 19. Qxc4 {[%clk 0:01:55.6]}
19... N7b6 {[%clk 0:01:48.2]} 20. Qe2 {[%clk 0:01:06.4]} 20... Qxc6 {[%clk
0:01:28.3]} 21. exd5 {[%clk 0:01:05.7]} 21... Qc7 {[%clk 0:01:28]} 22. a5 {[%clk
0:01:01.6]} 22... Nd7 {[%clk 0:01:27.6]} 23. Bf4 {[%clk 0:00:51.7]} 23... Ne5
{[%clk 0:01:26]} 24. Bxe5 {[%clk 0:00:47.6]} 24... Bxe5 {[%clk 0:01:25.4]} 25.
h4 {[%clk 0:00:40.1]} 25... h5 {[%clk 0:01:21.3]} 26. Qc2 {[%clk 0:00:32.5]}
26... Kg7 {[%clk 0:01:20.4]} 27. a6 {[%clk 0:00:19.6]} 27... Qb6 {[%clk
0:01:13.6]} 28. f4 {[%clk 0:00:12.6]} 28... Bd4+ {[%clk 0:01:12.7]} 29. Kh2
{[%clk 0:00:13.2]} 29... b3 {[%clk 0:01:07.9]} 30. Qd2 {[%clk 0:00:10.7]} 30...
Rfe8 {[%clk 0:01:08.3]} 31. f5 {[%clk 0:00:10.3]} 31... Re5 {[%clk 0:00:56.7]}
32. Rxe5 {[%clk 0:00:09.4]} 32... Bxe5 {[%clk 0:00:56.5]} 33. fxg6 {[%clk
0:00:09.9]} 33... fxg6 {[%clk 0:00:56.2]} 34. Qe2 {[%clk 0:00:07.8]} 34... Rf8
{[%clk 0:00:51]} 35. Rf1 {[%clk 0:00:06.4]} 35... Rxf1 {[%clk 0:00:49.4]} 36.
Bxf1 {[%clk 0:00:07.3]} 36... c4 {[%clk 0:00:43.4]} 37. Qd2 {[%clk 0:00:02.8]}
37... c3 {[%clk 0:00:38.2]} 38. bxc3 {[%clk 0:00:01.4]} 38... b2 {[%clk
0:00:38.1]} 39. Bd3 {[%clk 0:00:01.8]} 39... b1=Q {[%clk 0:00:35.4]} 40. Bxb1
{[%clk 0:00:02.7]} 40... Qxb1 {[%clk 0:00:35.6]} 41. Qe3 {[%clk 0:00:03.4]}
41... Qa2+ {[%clk 0:00:30]} 42. Kh3 {[%clk 0:00:03.4]} 42... Qxa6 {[%clk
0:00:29.9]} 43. Qe4 {[%clk 0:00:02.4]} 43... Qf1+ {[%clk 0:00:29.4]} 44. Kh2
{[%clk 0:00:01.6]} 44... Qf2+ {[%clk 0:00:29.2]} 45. Kh3 {[%clk 0:00:02]} 45...
Qxg3# {[%clk 0:00:29.3]} 0-1

[Event "*** SCC Grand Prix: Titled Tuesday Blitz"]
[Site "Chess.com"]
[Date "2020.06.23"]
[Round "4"]
[White "Alexander_Donchenko"]
[Black "pooh2012"]
[Result "1-0"]
[WhiteElo "2683"]
[BlackElo "2486"]
[TimeControl "180+1"]
[EndTime "10:39:43 PDT"]
[Termination "Alexander_Donchenko won by resignation"]

1. e4 {[%clk 0:03:00.9]} 1... c6 {[%clk 0:02:58]} 2. d4 {[%clk 0:02:59.6]} 2...
d5 {[%clk 0:02:57.8]} 3. e5 {[%clk 0:03:00.5]} 3... Bf5 {[%clk 0:02:57.5]} 4.
Nd2 {[%clk 0:02:59.9]} 4... e6 {[%clk 0:02:52.8]} 5. Nb3 {[%clk 0:03:00.4]} 5...
Nd7 {[%clk 0:02:50.1]} 6. Nf3 {[%clk 0:03:00.6]} 6... Bg6 {[%clk 0:02:46.7]} 7.
Be2 {[%clk 0:03:00.4]} 7... Nh6 {[%clk 0:02:46.4]} 8. O-O {[%clk 0:02:57.9]}
8... Nf5 {[%clk 0:02:45.8]} 9. a4 {[%clk 0:02:57.2]} 9... a6 {[%clk 0:02:43.9]}
10. a5 {[%clk 0:02:57]} 10... c5 {[%clk 0:02:42.2]} 11. c3 {[%clk 0:02:40.8]}
11... Be7 {[%clk 0:02:37.3]} 12. g4 {[%clk 0:02:31.1]} 12... Nh6 {[%clk
0:02:33.3]} 13. h3 {[%clk 0:02:28.7]} 13... Ng8 {[%clk 0:02:30.5]} 14. Be3
{[%clk 0:02:24.4]} 14... Rc8 {[%clk 0:02:14.3]} 15. dxc5 {[%clk 0:02:09.1]}
15... Nxc5 {[%clk 0:02:10]} 16. Nxc5 {[%clk 0:02:08.9]} 16... Bxc5 {[%clk
0:02:10.8]} 17. Bxc5 {[%clk 0:02:09.4]} 17... Rxc5 {[%clk 0:02:11.3]} 18. Nd4
{[%clk 0:02:10.3]} 18... Ne7 {[%clk 0:02:00.8]} 19. f4 {[%clk 0:02:06.3]} 19...
Be4 {[%clk 0:01:55.4]} 20. f5 {[%clk 0:02:00.9]} 20... exf5 {[%clk 0:01:47.1]}
21. Qa4+ {[%clk 0:01:50.3]} 21... Kf8 {[%clk 0:00:47.9]} 22. gxf5 {[%clk
0:01:43]} 22... Nc6 {[%clk 0:00:26.5]} 23. Qa3 {[%clk 0:01:32.5]} 23... Qg5+
{[%clk 0:00:20.9]} 24. Bg4 {[%clk 0:01:32.6]} 24... Qe3+ {[%clk 0:00:16]} 25.
Kh2 {[%clk 0:01:18.2]} 25... Qd2+ {[%clk 0:00:15.2]} 26. Ne2 {[%clk 0:01:17.8]}
26... Qe3 {[%clk 0:00:13.6]} 27. Rae1 {[%clk 0:01:11.9]} 27... Nxe5 {[%clk
0:00:10.5]} 28. Nd4 {[%clk 0:01:08.7]} 28... Nxg4+ {[%clk 0:00:10.5]} 29. hxg4
{[%clk 0:01:09.6]} 29... Qh6+ {[%clk 0:00:10.9]} 30. Kg3 {[%clk 0:01:09.7]}
30... Qd6+ {[%clk 0:00:11]} 31. Rf4 {[%clk 0:01:06.5]} 31... h5 {[%clk
0:00:10.8]} 32. Ne2 {[%clk 0:00:41.7]} 32... hxg4 {[%clk 0:00:07.5]} 33. Rd1
{[%clk 0:00:32.1]} 33... Rh3+ {[%clk 0:00:03.8]} 34. Kxg4 {[%clk 0:00:32]} 34...
Qh6 {[%clk 0:00:02.5]} 35. Qxc5+ {[%clk 0:00:13.4]} 35... Kg8 {[%clk 0:00:02.7]}
36. Qc8+ {[%clk 0:00:05.5]} 36... Kh7 {[%clk 0:00:03.1]} 37. Rxe4 {[%clk
0:00:05]} 37... Qh5+ {[%clk 0:00:02.9]} 38. Kf4 {[%clk 0:00:04.8]} 38... Rf3+
{[%clk 0:00:03.5]} 39. Ke5 {[%clk 0:00:05]} 39... Qxf5+ {[%clk 0:00:04.1]} 40.
Qxf5+ {[%clk 0:00:03.9]} 40... Rxf5+ {[%clk 0:00:03.7]} 41. Kxf5 {[%clk
0:00:04.8]} 41... dxe4 {[%clk 0:00:04.4]} 42. Kxe4 {[%clk 0:00:05.5]} 1-0

[Event "*** SCC Grand Prix: Titled Tuesday Blitz"]
[Site "Chess.com"]
[Date "2020.06.23"]
[Round "4"]
[White "Barmen_EV"]
[Black "grzechu96"]
[Result "1-0"]
[WhiteElo "2486"]
[BlackElo "2644"]
[TimeControl "180+1"]
[EndTime "10:39:43 PDT"]
[Termination "Barmen_EV won by resignation"]

1. d4 {[%clk 0:03:00.5]} 1... d5 {[%clk 0:02:58.7]} 2. c4 {[%clk 0:03:00.2]}
2... c6 {[%clk 0:02:59.2]} 3. Nc3 {[%clk 0:02:59.6]} 3... Nf6 {[%clk 0:02:59.4]}
4. Nf3 {[%clk 0:02:59.4]} 4... dxc4 {[%clk 0:02:59.1]} 5. a4 {[%clk 0:02:59.2]}
5... Bf5 {[%clk 0:02:58.8]} 6. Nh4 {[%clk 0:02:59.3]} 6... e6 {[%clk 0:02:58.4]}
7. Nxf5 {[%clk 0:02:59.1]} 7... exf5 {[%clk 0:02:59.3]} 8. e3 {[%clk 0:03:00]}
8... Bb4 {[%clk 0:02:35.2]} 9. Bxc4 {[%clk 0:03:00.9]} 9... O-O {[%clk
0:02:35.1]} 10. O-O {[%clk 0:03:00.6]} 10... Nbd7 {[%clk 0:02:34.8]} 11. f3
{[%clk 0:02:57.8]} 11... a5 {[%clk 0:02:31.4]} 12. Bd3 {[%clk 0:02:55.4]} 12...
g6 {[%clk 0:02:31]} 13. e4 {[%clk 0:02:55.7]} 13... fxe4 {[%clk 0:02:28.9]} 14.
fxe4 {[%clk 0:02:56.6]} 14... Qb6 {[%clk 0:02:23.4]} 15. Be3 {[%clk 0:02:45.6]}
15... Rae8 {[%clk 0:02:23.3]} 16. Qf3 {[%clk 0:02:40.4]} 16... Qd8 {[%clk
0:02:21.1]} 17. Rad1 {[%clk 0:02:30.5]} 17... Nh5 {[%clk 0:02:18.6]} 18. Bc4
{[%clk 0:02:22.6]} 18... Qe7 {[%clk 0:02:17.6]} 19. e5 {[%clk 0:02:15.2]} 19...
Nb6 {[%clk 0:02:12.8]} 20. Bb3 {[%clk 0:02:10]} 20... Kh8 {[%clk 0:01:24.9]} 21.
Bh6 {[%clk 0:02:03.8]} 21... Ng7 {[%clk 0:01:20.3]} 22. Ne4 {[%clk 0:01:50.7]}
22... Nd5 {[%clk 0:01:13.4]} 23. Bxd5 {[%clk 0:01:48.2]} 23... cxd5 {[%clk
0:01:14.3]} 24. Nf6 {[%clk 0:01:49.1]} 24... Rd8 {[%clk 0:01:14.4]} 25. Qh3
{[%clk 0:01:45.7]} 25... Rg8 {[%clk 0:01:05.1]} 26. Bg5 {[%clk 0:01:15]} 26...
h5 {[%clk 0:00:40.2]} 27. Qh4 {[%clk 0:00:33.2]} 27... Ne6 {[%clk 0:00:33.8]}
28. Rf5 {[%clk 0:00:16.4]} 28... Rg7 {[%clk 0:00:04.8]} 29. Rdf1 {[%clk
0:00:15.3]} 29... Nxg5 {[%clk 0:00:04]} 30. Qxg5 {[%clk 0:00:13.6]} 30... Rh7
{[%clk 0:00:02.3]} 31. Nxh7 {[%clk 0:00:13.4]} 31... Qxg5 {[%clk 0:00:02.1]} 32.
Nxg5 {[%clk 0:00:14.3]} 32... gxf5 {[%clk 0:00:02.3]} 33. Nxf7+ {[%clk
0:00:14.4]} 33... Kg7 {[%clk 0:00:03.2]} 34. Nxd8 {[%clk 0:00:15.3]} 34... Bd2
{[%clk 0:00:03.8]} 35. Rxf5 {[%clk 0:00:14.9]} 35... Be3+ {[%clk 0:00:04.7]} 36.
Kf1 {[%clk 0:00:15.1]} 36... Bxd4 {[%clk 0:00:05.6]} 37. Ne6+ {[%clk 0:00:15.3]}
37... Kg6 {[%clk 0:00:06.5]} 38. Nxd4 {[%clk 0:00:16.2]} 38... b5 {[%clk
0:00:06.8]} 39. axb5 {[%clk 0:00:15.5]} 39... a4 {[%clk 0:00:07.4]} 40. b6
{[%clk 0:00:16.4]} 40... a3 {[%clk 0:00:08.3]} 41. bxa3 {[%clk 0:00:17]} 1-0

[Event "*** SCC Grand Prix: Titled Tuesday Blitz"]
[Site "Chess.com"]
[Date "2020.06.23"]
[Round "4"]
[White "mmmflatbread"]
[Black "Alindsay211"]
[Result "1-0"]
[WhiteElo "2760"]
[BlackElo "2273"]
[TimeControl "180+1"]
[EndTime "10:39:46 PDT"]
[Termination "mmmflatbread won on time"]

1. e4 {[%clk 0:03:00.9]} 1... c5 {[%clk 0:02:58.9]} 2. Nc3 {[%clk 0:03:01.8]}
2... e6 {[%clk 0:02:56.3]} 3. Nf3 {[%clk 0:03:02.7]} 3... Nc6 {[%clk 0:02:55.5]}
4. d4 {[%clk 0:03:03.2]} 4... cxd4 {[%clk 0:02:55.7]} 5. Nxd4 {[%clk 0:03:04.1]}
5... Qc7 {[%clk 0:02:56.1]} 6. g3 {[%clk 0:03:02.4]} 6... a6 {[%clk 0:02:54.9]}
7. Bg2 {[%clk 0:03:02.5]} 7... Nf6 {[%clk 0:02:54.8]} 8. O-O {[%clk 0:03:02]}
8... d6 {[%clk 0:02:54.7]} 9. Nde2 {[%clk 0:03:02.5]} 9... Be7 {[%clk
0:02:54.8]} 10. h3 {[%clk 0:03:03.4]} 10... O-O {[%clk 0:02:54.9]} 11. a4 {[%clk
0:03:03.8]} 11... Rb8 {[%clk 0:02:54]} 12. f4 {[%clk 0:03:01.9]} 12... b5 {[%clk
0:02:51.2]} 13. axb5 {[%clk 0:03:02.8]} 13... axb5 {[%clk 0:02:51.8]} 14. f5
{[%clk 0:03:03.4]} 14... b4 {[%clk 0:02:51.1]} 15. Nb1 {[%clk 0:03:03.1]} 15...
Ne5 {[%clk 0:02:51.2]} 16. fxe6 {[%clk 0:03:02.8]} 16... fxe6 {[%clk 0:02:51.3]}
17. Kh2 {[%clk 0:03:03.1]} 17... Bb7 {[%clk 0:02:49.7]} 18. Nd2 {[%clk
0:03:03.2]} 18... Rbc8 {[%clk 0:02:47.7]} 19. Nd4 {[%clk 0:03:02.7]} 19... Rf7
{[%clk 0:02:34.9]} 20. N2b3 {[%clk 0:02:52.5]} 20... Bxe4 {[%clk 0:02:24.9]} 21.
Bxe4 {[%clk 0:02:51.1]} 21... Nxe4 {[%clk 0:02:24.7]} 22. Rxf7 {[%clk 0:02:48]}
22... Kxf7 {[%clk 0:02:25.6]} 23. Qh5+ {[%clk 0:02:36.9]} 23... Kg8 {[%clk
0:02:21.1]} 24. Bf4 {[%clk 0:02:36.2]} 24... Ng6 {[%clk 0:02:16.7]} 25. Qe2
{[%clk 0:02:34.9]} 25... e5 {[%clk 0:01:39.9]} 26. Qxe4 {[%clk 0:02:33.7]} 26...
exf4 {[%clk 0:01:32.4]} 27. gxf4 {[%clk 0:02:23.9]} 27... d5 {[%clk 0:01:24.7]}
28. Qxd5+ {[%clk 0:02:18.1]} 28... Kh8 {[%clk 0:01:24.8]} 29. Kh1 {[%clk
0:02:13]} 29... Qxf4 {[%clk 0:01:21.2]} 30. Qf5 {[%clk 0:02:07.5]} 30... Qb8
{[%clk 0:01:07.7]} 31. Re1 {[%clk 0:01:54.1]} 31... Bf6 {[%clk 0:01:07.7]} 32.
Qe4 {[%clk 0:01:46.2]} 32... Nh4 {[%clk 0:01:05.9]} 33. Rf1 {[%clk 0:01:38.2]}
33... Qg3 {[%clk 0:00:57.1]} 34. Qg4 {[%clk 0:01:38.2]} 34... Qb8 {[%clk
0:00:52.5]} 35. Rxf6 {[%clk 0:01:35.7]} 35... gxf6 {[%clk 0:00:40.2]} 36. Qxh4
{[%clk 0:01:35.5]} 36... Qb7+ {[%clk 0:00:38.5]} 37. Kh2 {[%clk 0:01:31.6]}
37... Qc7+ {[%clk 0:00:28.3]} 38. Qg3 {[%clk 0:01:29.6]} 38... Qd7 {[%clk
0:00:25.3]} 39. Qf4 {[%clk 0:01:23.4]} 39... f5 {[%clk 0:00:23.4]} 40. Nd2
{[%clk 0:01:11.6]} 40... Re8 {[%clk 0:00:20.6]} 41. N2f3 {[%clk 0:01:08.6]}
41... Re4 {[%clk 0:00:20.2]} 42. Qg5 {[%clk 0:01:00.6]} 42... Qc7+ {[%clk
0:00:14.8]} 43. Qg3 {[%clk 0:00:56.6]} 43... Qxg3+ {[%clk 0:00:14.5]} 44. Kxg3
{[%clk 0:00:56.3]} 44... f4+ {[%clk 0:00:11.3]} 45. Kg4 {[%clk 0:00:51.6]} 45...
Kg7 {[%clk 0:00:11.8]} 46. Kf5 {[%clk 0:00:51.5]} 46... Re8 {[%clk 0:00:09.7]}
47. Kxf4 {[%clk 0:00:50.9]} 47... Kf6 {[%clk 0:00:09.2]} 48. Nc6 {[%clk
0:00:48.1]} 48... Rc8 {[%clk 0:00:08.7]} 49. Nfd4 {[%clk 0:00:46.3]} 49... h6
{[%clk 0:00:07.9]} 50. Nxb4 {[%clk 0:00:45.9]} 50... Rg8 {[%clk 0:00:04.7]} 51.
c3 {[%clk 0:00:45.8]} 51... Rg1 {[%clk 0:00:04.8]} 52. Nd5+ {[%clk 0:00:46]}
52... Kf7 {[%clk 0:00:04.2]} 53. b4 {[%clk 0:00:44.8]} 53... h5 {[%clk
0:00:04.5]} 54. b5 {[%clk 0:00:44]} 54... h4 {[%clk 0:00:04.5]} 55. b6 {[%clk
0:00:43.8]} 55... Rb1 {[%clk 0:00:03.9]} 56. Nb4 {[%clk 0:00:43.7]} 56... Re1
{[%clk 0:00:03.5]} 57. b7 {[%clk 0:00:43.7]} 1-0

[Event "*** SCC Grand Prix: Titled Tuesday Blitz"]
[Site "Chess.com"]
[Date "2020.06.23"]
[Round "4"]
[White "ShahMatKanal"]
[Black "mfwagnerpeixoto"]
[Result "1-0"]
[WhiteElo "2403"]
[BlackElo "2195"]
[TimeControl "180+1"]
[EndTime "10:39:47 PDT"]
[Termination "ShahMatKanal won by resignation"]

1. e4 {[%clk 0:03:00.9]} 1... c5 {[%clk 0:02:59.5]} 2. d4 {[%clk 0:02:59.7]}
2... cxd4 {[%clk 0:02:57.2]} 3. c3 {[%clk 0:03:00.1]} 3... Nf6 {[%clk
0:02:56.1]} 4. e5 {[%clk 0:02:59.6]} 4... Nd5 {[%clk 0:02:56.1]} 5. cxd4 {[%clk
0:02:59.8]} 5... e6 {[%clk 0:02:53.7]} 6. Nc3 {[%clk 0:02:59.7]} 6... Nxc3
{[%clk 0:02:53.2]} 7. bxc3 {[%clk 0:02:59.2]} 7... b6 {[%clk 0:02:54.1]} 8. Bd3
{[%clk 0:02:27]} 8... Bb7 {[%clk 0:02:47.9]} 9. Nf3 {[%clk 0:02:26.9]} 9... Qc7
{[%clk 0:02:48]} 10. Bd2 {[%clk 0:02:21.7]} 10... d6 {[%clk 0:02:47.1]} 11. O-O
{[%clk 0:02:18.1]} 11... Nd7 {[%clk 0:02:46.4]} 12. exd6 {[%clk 0:02:11]} 12...
Bxd6 {[%clk 0:02:45]} 13. h3 {[%clk 0:02:06.3]} 13... Nf6 {[%clk 0:02:23.7]} 14.
Qe2 {[%clk 0:02:01.4]} 14... O-O {[%clk 0:02:18.1]} 15. Rac1 {[%clk 0:01:59.8]}
15... Bf4 {[%clk 0:01:58.6]} 16. Be3 {[%clk 0:01:39.6]} 16... Nd5 {[%clk
0:01:43.2]} 17. Qd2 {[%clk 0:01:19.8]} 17... Nxe3 {[%clk 0:01:24.7]} 18. fxe3
{[%clk 0:01:19.7]} 18... Bh6 {[%clk 0:01:25.4]} 19. Qf2 {[%clk 0:01:11.8]} 19...
Rad8 {[%clk 0:01:12.2]} 20. Rc2 {[%clk 0:01:11.7]} 20... g6 {[%clk 0:01:11]} 21.
e4 {[%clk 0:01:09.2]} 21... f5 {[%clk 0:00:57.9]} 22. e5 {[%clk 0:01:07.7]}
22... Bd5 {[%clk 0:00:47]} 23. Kh1 {[%clk 0:00:59.4]} 23... Bc4 {[%clk
0:00:43.1]} 24. Qe2 {[%clk 0:00:58.2]} 24... Bxd3 {[%clk 0:00:41.3]} 25. Qxd3
{[%clk 0:00:59.1]} 25... Rd7 {[%clk 0:00:37.9]} 26. Qb5 {[%clk 0:00:58.9]} 26...
Rfd8 {[%clk 0:00:29.6]} 27. Qb3 {[%clk 0:00:59.1]} 27... Qc6 {[%clk 0:00:24.7]}
28. Qb1 {[%clk 0:00:57.6]} 28... Qd5 {[%clk 0:00:22.2]} 29. Qb3 {[%clk
0:00:56.8]} 29... Qxb3 {[%clk 0:00:19]} 30. axb3 {[%clk 0:00:57.7]} 30... Rc8
{[%clk 0:00:19.3]} 31. Rd1 {[%clk 0:00:55.3]} 31... Rdc7 {[%clk 0:00:18.4]} 32.
Rd3 {[%clk 0:00:55.5]} 32... b5 {[%clk 0:00:17.9]} 33. Kg1 {[%clk 0:00:54.3]}
33... b4 {[%clk 0:00:17.8]} 34. c4 {[%clk 0:00:54.7]} 34... a5 {[%clk
0:00:16.5]} 35. Ra2 {[%clk 0:00:54.8]} 35... Ra7 {[%clk 0:00:15.4]} 36. Ra4
{[%clk 0:00:55]} 36... Rcc7 {[%clk 0:00:15.6]} 37. Kf2 {[%clk 0:00:54.6]} 37...
Bf8 {[%clk 0:00:15.3]} 38. Ne1 {[%clk 0:00:53.4]} 38... h6 {[%clk 0:00:15.3]}
39. Nc2 {[%clk 0:00:53.6]} 39... Kf7 {[%clk 0:00:15.9]} 40. Ke2 {[%clk
0:00:53.8]} 40... Be7 {[%clk 0:00:15.9]} 41. g3 {[%clk 0:00:52.9]} 41... h5
{[%clk 0:00:15.5]} 42. Rd1 {[%clk 0:00:49.9]} 42... Rd7 {[%clk 0:00:15.5]} 43.
Rda1 {[%clk 0:00:49.7]} 43... Bd8 {[%clk 0:00:14.4]} 44. Ke3 {[%clk 0:00:49.3]}
44... Bb6 {[%clk 0:00:14.1]} 45. c5 {[%clk 0:00:49.4]} 45... Bd8 {[%clk
0:00:14.2]} 46. Kd3 {[%clk 0:00:49.5]} 46... Bg5 {[%clk 0:00:13.7]} 47. Rxa5
{[%clk 0:00:49]} 47... Rxa5 {[%clk 0:00:13.1]} 48. Rxa5 {[%clk 0:00:49.9]} 48...
h4 {[%clk 0:00:13.4]} 49. gxh4 {[%clk 0:00:49.7]} 49... Bxh4 {[%clk 0:00:13.7]}
50. Ne3 {[%clk 0:00:50]} 50... f4 {[%clk 0:00:13]} 51. Nc4 {[%clk 0:00:44.4]}
51... f3 {[%clk 0:00:10.7]} 52. Nd6+ {[%clk 0:00:44.2]} 52... Kg7 {[%clk
0:00:10.5]} 53. Ra1 {[%clk 0:00:42.7]} 53... f2 {[%clk 0:00:10.1]} 54. c6 {[%clk
0:00:41.8]} 54... Rc7 {[%clk 0:00:09.7]} 55. Ne8+ {[%clk 0:00:42.3]} 1-0

[Event "*** SCC Grand Prix: Titled Tuesday Blitz"]
[Site "Chess.com"]
[Date "2020.06.23"]
[Round "4"]
[White "pedromartinez91"]
[Black "tan275"]
[Result "1-0"]
[WhiteElo "2496"]
[BlackElo "2262"]
[TimeControl "180+1"]
[EndTime "10:39:48 PDT"]
[Termination "pedromartinez91 won on time"]

1. Nf3 {[%clk 0:03:00.9]} 1... d5 {[%clk 0:02:57.2]} 2. g3 {[%clk 0:03:01.3]}
2... Nf6 {[%clk 0:02:55.9]} 3. Bg2 {[%clk 0:03:02.2]} 3... c6 {[%clk 0:02:55.9]}
4. O-O {[%clk 0:03:03.1]} 4... Bf5 {[%clk 0:02:55.1]} 5. c4 {[%clk 0:03:03.7]}
5... e6 {[%clk 0:02:54.2]} 6. cxd5 {[%clk 0:03:04]} 6... exd5 {[%clk 0:02:52.9]}
7. d3 {[%clk 0:03:04.2]} 7... Be7 {[%clk 0:02:52.1]} 8. Nc3 {[%clk 0:03:04.3]}
8... O-O {[%clk 0:02:51.6]} 9. Qc2 {[%clk 0:03:00]} 9... Na6 {[%clk 0:02:42.4]}
10. a3 {[%clk 0:02:55.5]} 10... h6 {[%clk 0:02:38.3]} 11. e4 {[%clk 0:02:55.2]}
11... dxe4 {[%clk 0:02:36.4]} 12. dxe4 {[%clk 0:02:56.1]} 12... Bh7 {[%clk
0:02:35.3]} 13. Bf4 {[%clk 0:02:49.5]} 13... Nc5 {[%clk 0:02:28.8]} 14. Rad1
{[%clk 0:02:49.1]} 14... Qb6 {[%clk 0:02:24.9]} 15. Ne5 {[%clk 0:02:39.5]} 15...
a5 {[%clk 0:02:19.9]} 16. Nc4 {[%clk 0:02:39.3]} 16... Qa6 {[%clk 0:02:16.8]}
17. Nd6 {[%clk 0:02:31.6]} 17... Rfd8 {[%clk 0:02:06]} 18. Rfe1 {[%clk
0:02:30.9]} 18... Nh5 {[%clk 0:01:50.8]} 19. Bf1 {[%clk 0:02:17.2]} 19... Qa7
{[%clk 0:01:45.5]} 20. Be5 {[%clk 0:01:52.4]} 20... b5 {[%clk 0:01:24.8]} 21.
Nf5 {[%clk 0:01:38.5]} 21... Bf6 {[%clk 0:01:19.2]} 22. Bxf6 {[%clk 0:01:18.6]}
22... Nxf6 {[%clk 0:01:20.1]} 23. b4 {[%clk 0:01:10.1]} 23... axb4 {[%clk
0:01:17.1]} 24. axb4 {[%clk 0:01:10.4]} 24... Ne6 {[%clk 0:00:40.8]} 25. Bg2
{[%clk 0:00:54.4]} 25... Qb6 {[%clk 0:00:16.5]} 26. Ne2 {[%clk 0:00:41.4]} 26...
Ng4 {[%clk 0:00:15.1]} 27. Ned4 {[%clk 0:00:32.9]} 27... Bxf5 {[%clk 0:00:14.2]}
28. Nxf5 {[%clk 0:00:31]} 28... Rxd1 {[%clk 0:00:13.9]} 29. Rxd1 {[%clk
0:00:30.7]} 29... Rd8 {[%clk 0:00:10.7]} 30. Rxd8+ {[%clk 0:00:28.4]} 30... Qxd8
{[%clk 0:00:09.7]} 31. h3 {[%clk 0:00:26.2]} 31... Ne5 {[%clk 0:00:08.4]} 32.
Qc3 {[%clk 0:00:20.5]} 32... Qd1+ {[%clk 0:00:05.7]} 33. Kh2 {[%clk 0:00:20.4]}
33... f6 {[%clk 0:00:05]} 34. f4 {[%clk 0:00:12.9]} 34... Nc4 {[%clk 0:00:04.5]}
35. Ne3 {[%clk 0:00:11.9]} 35... Nxe3 {[%clk 0:00:02.8]} 36. Qxe3 {[%clk
0:00:12.8]} 36... Qd4 {[%clk 0:00:03]} 37. Qc1 {[%clk 0:00:10.5]} 37... Qc4
{[%clk 0:00:02.4]} 38. Qb2 {[%clk 0:00:08.4]} 38... Kf7 {[%clk 0:00:01.5]} 39.
h4 {[%clk 0:00:08.6]} 1-0

[Event "*** SCC Grand Prix: Titled Tuesday Blitz"]
[Site "Chess.com"]
[Date "2020.06.23"]
[Round "4"]
[White "XiaoKangZhong"]
[Black "AndreyNeves"]
[Result "1-0"]
[WhiteElo "2409"]
[BlackElo "2203"]
[TimeControl "180+1"]
[EndTime "10:39:48 PDT"]
[Termination "XiaoKangZhong won by checkmate"]

1. e4 {[%clk 0:03:00.9]} 1... e5 {[%clk 0:02:57.1]} 2. Nf3 {[%clk 0:02:49.3]}
2... Nc6 {[%clk 0:02:56.5]} 3. Bc4 {[%clk 0:02:48.6]} 3... Bc5 {[%clk
0:02:55.2]} 4. c3 {[%clk 0:02:45.9]} 4... Nf6 {[%clk 0:02:55]} 5. d3 {[%clk
0:02:45]} 5... d6 {[%clk 0:02:53.6]} 6. O-O {[%clk 0:02:44.1]} 6... O-O {[%clk
0:02:47.1]} 7. Nbd2 {[%clk 0:02:41.8]} 7... a6 {[%clk 0:02:46.9]} 8. Bb3 {[%clk
0:02:41.8]} 8... b5 {[%clk 0:02:34.8]} 9. h3 {[%clk 0:02:38.8]} 9... Qe7 {[%clk
0:02:29.6]} 10. Re1 {[%clk 0:02:37.9]} 10... Be6 {[%clk 0:02:28.2]} 11. Bc2
{[%clk 0:02:34.9]} 11... Rfe8 {[%clk 0:02:23]} 12. Nf1 {[%clk 0:02:29.7]} 12...
Bb6 {[%clk 0:02:11.5]} 13. Ng3 {[%clk 0:02:21.3]} 13... Qd7 {[%clk 0:02:06.9]}
14. d4 {[%clk 0:02:16.3]} 14... Bxh3 {[%clk 0:01:59.7]} 15. gxh3 {[%clk
0:01:56.6]} 15... Qxh3 {[%clk 0:01:58.8]} 16. Ng5 {[%clk 0:01:56.7]} 16... Qd7
{[%clk 0:01:43.5]} 17. d5 {[%clk 0:01:44.1]} 17... Ne7 {[%clk 0:01:40.1]} 18.
Be3 {[%clk 0:01:35.7]} 18... Bxe3 {[%clk 0:01:32.8]} 19. fxe3 {[%clk 0:01:32.8]}
19... h6 {[%clk 0:01:27.4]} 20. Nf3 {[%clk 0:01:18.7]} 20... Qh3 {[%clk
0:01:27.1]} 21. Nf1 {[%clk 0:01:13.6]} 21... Nh5 {[%clk 0:01:08.1]} 22. Qe2
{[%clk 0:01:09.8]} 22... Ng6 {[%clk 0:01:01.8]} 23. Qg2 {[%clk 0:01:04.6]} 23...
Qd7 {[%clk 0:00:59.5]} 24. Ng3 {[%clk 0:00:58.5]} 24... Nf6 {[%clk 0:00:57]} 25.
Nf5 {[%clk 0:00:48.5]} 25... Kh7 {[%clk 0:00:55.1]} 26. N3h4 {[%clk 0:00:46.6]}
26... Rg8 {[%clk 0:00:53.2]} 27. Rf1 {[%clk 0:00:42.2]} 27... Raf8 {[%clk
0:00:51.6]} 28. Rf3 {[%clk 0:00:38.4]} 28... c6 {[%clk 0:00:39.6]} 29. dxc6
{[%clk 0:00:26.3]} 29... Qxc6 {[%clk 0:00:40.5]} 30. Rg3 {[%clk 0:00:26.6]}
30... Qc5 {[%clk 0:00:24]} 31. Re1 {[%clk 0:00:23.1]} 31... Nh5 {[%clk
0:00:19.9]} 32. Rxg6 {[%clk 0:00:17.3]} 32... fxg6 {[%clk 0:00:19.2]} 33. Qxg6+
{[%clk 0:00:16.9]} 33... Kh8 {[%clk 0:00:18.4]} 34. Qxh5 {[%clk 0:00:17.3]}
34... Rf6 {[%clk 0:00:15.7]} 35. Kh2 {[%clk 0:00:14.1]} 35... b4 {[%clk
0:00:15.8]} 36. Re2 {[%clk 0:00:07.9]} 36... bxc3 {[%clk 0:00:15.7]} 37. bxc3
{[%clk 0:00:08.8]} 37... Qc4 {[%clk 0:00:15.8]} 38. Rg2 {[%clk 0:00:08.4]} 38...
Qf1 {[%clk 0:00:14.5]} 39. Ng6+ {[%clk 0:00:05.3]} 39... Kh7 {[%clk 0:00:10.5]}
40. Nge7 {[%clk 0:00:06]} 40... g6 {[%clk 0:00:06.5]} 41. Qxh6# {[%clk
0:00:05.8]} 1-0